[Event "SWE-ch Masters 2019"]
[Site "Eskilstuna"]
[Date "2019.07.13"]
[Round "8.1"]
[White "Zadruzny, Nicolaj"]
[Black "Nikolic, Vladan"]
[Result "1/2-1/2"]
[ECO "E97"]
[WhiteElo "2280"]
[BlackElo "2153"]
[Annotator "ChessBase"]
[PlyCount "33"]
[EventDate "2019.07.06"]
[EventType "swiss"]
[EventCountry "SWE"]
[SourceTitle "playchess.com"]
[Source "ChessBase"]
[SourceQuality "1"]
[TimeControl "40/5400+30:1800+30"]

1. d4 {[%emt 0:00:00]} Nf6 {[%emt 0:00:04]} 2. c4 {[%emt 0:00:00]} g6 {[%emt 0:00:19]} 3. Nc3 {[%emt 0:00:03]} Bg7 {[%emt 0:00:09]} 4. e4 {[%emt 0:00:19]} d6 {[%emt 0:00:07]} 5. Nf3 {[%emt 0:00:12]} O-O {[%emt 0:00:27]} 6. Be2 {[%emt 0:00:23]} e5 {[%emt 0:00:36]} 7. O-O {[%emt 0:00:24]} Nc6 {[%emt 0:01:04]} 8. d5 {[%emt 0:00:27]} Ne7 {[%emt 0:00:12]} 9. b4 {[%emt 0:00:32]} a5 {[%emt 0:00:49]} 10. Ba3 {[%emt 0:01:00]} axb4 {[%emt 0:01:37]} 11. Bxb4 {[%emt 0:00:08]} b6 {[%emt 0:00:09]} 12. a4 {[%emt 0:00:48]} Re8 {[%emt 0:01:35]} 13. a5 {[%emt 0:02:00]} c5 {[%emt 0:03:13]} 14. dxc6 {[%emt 0:00:13]} Nxc6 {[%emt 0:00:23]} 15. Bxd6 {[%emt 0:00:19]} Rxa5 {[%emt 0:02:06]} 16. Rxa5 {[%emt 0:01:15]} Nxa5 {[%emt 0:01:04]} 17. c5 {[%emt 0:01:46]} 1/2-1/2

[Event "SWE-ch Masters 2019"]
[Site "Eskilstuna"]
[Date "2019.07.13"]
[Round "8.2"]
[White "Tiger-Norqvist, Axel"]
[Black "Crevatin, Leo"]
[Result "1-0"]
[ECO "B30"]
[WhiteElo "2222"]
[BlackElo "2146"]
[Annotator "NA"]
[PlyCount "121"]
[EventDate "2019.07.06"]
[EventType "swiss"]
[EventCountry "SWE"]
[SourceTitle "playchess.com"]
[Source "ChessBase"]
[SourceQuality "1"]
[TimeControl "40/5400+30:1800+30"]

1. e4 {[%emt 0:01:14]} c5 {[%emt 0:00:00]} 2. Nf3 {[%emt 0:00:13]} Nc6 {[%emt 0:00:00]} 3. Bb5 {[%emt 0:00:04]} e6 {[%emt 0:00:00]} 4. O-O {[%emt 0:00:06]} Nge7 {[%emt 0:00:00]} 5. d4 {[%emt 0:00:10]} cxd4 {[%emt 0:00:50]} 6. Nxd4 {[%emt 0:00:10]} a6 {[%emt 0:00:44]} 7. Be2 {[%emt 0:00:08]} Nxd4 {[%emt 0:01:57]} 8. Qxd4 {[%emt 0:00:22]} Nc6 {[%emt 0:00:02]} 9. Qc3 {[%emt 0:00:11]} Qf6 {[%emt 0:09:14]} 10. Qxf6 {[%emt 0:04:48]} gxf6 {[%emt 0:00:02]} 11. Be3 {[%emt 0:00:09]} b5 {[%emt 0:04:21]} 12. a4 {[%emt 0:00:49]} b4 {[%emt 0:00:39]} 13. Nd2 {[%emt 0:00:21]} Bb7 {[%emt 0:01:47]} 14. Nc4 {[%emt 0:04:42]} d5 {[%emt 0:03:15]} 15. exd5 {[%emt 0:01:35]} exd5 {[%emt 0:00:22]} 16. Nb6 {[%emt 0:00:29]} Rd8 {[%emt 0:00:02]} 17. Rfe1 {[%emt 0:03:02]} Ne5 {[%emt 0:04:33]} 18. Bd4 {[%emt 0:12:12]} Be7 {[%emt 0:01:09]} 19. Bd3 {[%emt 0:01:10]} O-O {[%emt 0:01:14]} 20. Re3 {[%emt 0:03:55]} Nc6 {[%emt 0:01:40]} 21. Rg3+ {[%emt 0:00:56]} Kh8 {[%emt 0:00:20]} 22. Re1 {[%emt 0:00:10]} Nxd4 {[%emt 0:00:53]} 23. Rxe7 {[%emt 0:00:24]} Rde8 {[%emt 0:02:51]} 24. Rge3 {[%emt 0:00:37]} Bc6 {[%emt 0:01:02]} 25. Rxe8 {[%emt 0:02:46]} Rxe8 {[%emt 0:00:05]} 26. Rxe8+ {[%emt 0:00:10]} Bxe8 {[%emt 0:00:02]} 27. Nxd5 {[%emt 0:00:21]} Bxa4 {[%emt 0:00:41]} 28. Nxb4 {[%emt 0:00:40]} a5 {[%emt 0:00:28]} 29. c3 {[%emt 0:00:31]} Ne6 {[%emt 0:04:41]} 30. Nd5 {[%emt 0:01:19]} Kg7 {[%emt 0:01:09]} 31. Ne3 {[%emt 0:02:40]} Nc5 {[%emt 0:01:11]} 32. Bc4 {[%emt 0:04:01]} Bd7 {[%emt 0:03:06]} 33. b4 {[%emt 0:04:26]} axb4 {[%emt 0:00:03]} 34. cxb4 {[%emt 0:00:04]} Nb7 {[%emt 0:02:38]} 35. b5 {[%emt 0:03:49]} Nd6 {[%emt 0:01:00]} 36. b6 {[%emt 0:00:07]} Bc6 {[%emt 0:00:19]} 37. Bd5 Bxd5 {[%emt 0:00:08]} 38. Nxd5 {[%emt 0:00:19]} Kg6 {[%emt 0:03:27]} 39. Ne3 {[%emt 0:02:16]} f5 {[%emt 0:01:51]} 40. Nc4 {[%emt 0:00:12]} Nb7 {[%emt 0:00:01]} 41. Kf1 {[%emt 0:30:30]} Kf6 {[%emt 0:31:06]} 42. Ke2 {[%emt 0:00:08]} Ke6 {[%emt 0:00:12]} 43. Kf3 {[%emt 0:02:45]} Kd5 {[%emt 0:00:35]} 44. Ne3+ {[%emt 0:00:05]} Ke5 {[%emt 0:03:08]} 45. g3 {[%emt 0:00:11]} f6 {[%emt 0:00:53]} 46. h4 {[%emt 0:00:29]} h6 {[%emt 0:03:20]} 47. g4 {[%emt 0:00:18]} fxg4+ {[%emt 0:03:00]} 48. Nxg4+ {[%emt 0:00:05]} Kf5 {[%emt 0:00:54]} 49. Nxh6+ {[%emt 0:00:10]} Kg6 {[%emt 0:00:03]} 50. Ng4 {[%emt 0:00:10]} Nd6 {[%emt 0:00:26]} 51. h5+ {[%emt 0:01:50]} Kxh5 {[%emt 0:00:32]} 52. Nxf6+ {[%emt 0:00:04]} Kg6 {[%emt 0:00:07]} 53. Ne4 {[%emt 0:00:25]} Nb7 {[%emt 0:00:26]} 54. Kf4 {[%emt 0:00:08]} Kf7 {[%emt 0:00:45]} 55. Ke5 {[%emt 0:00:14]} Ke7 {[%emt 0:00:05]} 56. Kd5 {[%emt 0:00:12]} Nd8 {[%emt 0:00:46]} 57. Nc5 {[%emt 0:00:14]} Kf6 {[%emt 0:00:13]} 58. b7 {[%emt 0:00:35]} Nxb7 {[%emt 0:00:04]} 59. Nxb7 {[%emt 0:00:03]} Kf5 {[%emt 0:00:03]} 60. Nd6+ {[%emt 0:00:20]} Kf4 {[%emt 0:00:02]} 61. Ne4 {[%emt 0:00:11] Kxe4+ Kxe4} 1-0

[Event "SWE-ch Masters 2019"]
[Site "Eskilstuna"]
[Date "2019.07.13"]
[Round "8.3"]
[White "Engstrom, Kaj"]
[Black "Landgren, Andreas"]
[Result "0-1"]
[ECO "B51"]
[WhiteElo "2234"]
[BlackElo "2246"]
[Annotator "NA"]
[PlyCount "74"]
[EventDate "2019.07.06"]
[EventType "swiss"]
[EventCountry "SWE"]
[SourceTitle "playchess.com"]
[Source "ChessBase"]
[SourceQuality "1"]
[TimeControl "40/5400+30:1800+30"]

1. e4 {[%emt 0:00:43]} c5 {[%emt 0:00:00]} 2. Nf3 {[%emt 0:00:18]} d6 {[%emt 0:00:00]} 3. Bb5+ {[%emt 0:00:36]} Nd7 {[%emt 0:00:00]} 4. d4 {[%emt 0:04:41]} cxd4 {[%emt 0:00:00]} 5. Qxd4 {[%emt 0:00:21]} a6 {[%emt 0:00:11]} 6. Bc4 {[%emt 0:00:43]} e6 {[%emt 0:06:24]} 7. a4 {[%emt 0:06:37]} Ngf6 {[%emt 0:01:09]} 8. Nc3 {[%emt 0:00:33]} Be7 {[%emt 0:00:57]} 9. O-O {[%emt 0:02:57]} O-O {[%emt 0:02:28]} 10. Rd1 {[%emt 0:04:27]} Qc7 {[%emt 0:04:28]} 11. b3 {[%emt 0:08:44]} Rd8 {[%emt 0:26:57]} 12. Ba3 {[%emt 0:09:08]} Ne5 {[%emt 0:03:56]} 13. Nd2 {[%emt 0:11:15]} Ne8 {[%emt 0:12:20]} 14. Qe3 {[%emt 0:06:34]} Bf6 {[%emt 0:01:39]} 15. Bb2 {[%emt 0:01:12]} b6 {[%emt 0:04:19]} 16. Be2 {[%emt 0:04:40]} Bb7 {[%emt 0:02:54]} 17. f4 {[%emt 0:02:31]} Nc6 {[%emt 0:01:47]} 18. Qg3 {[%emt 0:13:14]} Rac8 {[%emt 0:07:45]} 19. Nc4 {[%emt 0:05:24]} Na5 {[%emt 0:13:28]} 20. Nxa5 {[%emt 0:04:42]} bxa5 {[%emt 0:00:22]} 21. Rd3 {[%emt 0:00:32]} Bxe4 {[%emt 0:00:54]} 22. Nxe4 {[%emt 0:01:43]} Bxb2 {[%emt 0:00:06]} 23. Rad1 {[%emt 0:01:18]} d5 {[%emt 0:01:59]} 24. Nf2 {[%emt 0:00:35]} g6 {[%emt 0:03:30]} 25. Ng4 {[%emt 0:04:42]} Bg7 {[%emt 0:01:00]} 26. Ne3 {[%emt 0:00:42]} Nd6 {[%emt 0:00:29]} 27. c4 {[%emt 0:00:59]} dxc4 {[%emt 0:01:08]} 28. bxc4 {[%emt 0:00:13]} Ne4 {[%emt 0:00:46]} 29. Qf3 {[%emt 0:00:25]} Nc3 {[%emt 0:00:37]} 30. R1d2 {[%emt 0:01:01]} Rxd3 {[%emt 0:00:58]} 31. Rxd3 {[%emt 0:00:21]} Qxf4 {[%emt 0:00:11]} 32. g3 {[%emt 0:01:33]} Qxf3 {[%emt 0:00:27]} 33. Bxf3 {[%emt 0:00:05]} Nxa4 {[%emt 0:00:10]} 34. Ra3 {[%emt 0:01:20]} Nb6 {[%emt 0:01:35]} 35. Bb7 {[%emt 0:00:25]} Rc5 {[%emt 0:00:15]} 36. Bxa6 {[%emt 0:00:06]} Bd4 {[%emt 0:00:16]} 37. Kf2 {[%emt 0:00:18]} Nxc4 {[%emt 0:00:17]} 0-1

[Event "SWE-ch Masters 2019"]
[Site "Eskilstuna"]
[Date "2019.07.13"]
[Round "8.4"]
[White "Gromark, Per-Olof"]
[Black "Eriksson, Jorgen"]
[Result "0-1"]
[ECO "D41"]
[WhiteElo "1909"]
[BlackElo "2211"]
[Annotator "NA"]
[PlyCount "96"]
[EventDate "2019.07.06"]
[EventType "swiss"]
[EventCountry "SWE"]
[SourceTitle "playchess.com"]
[Source "ChessBase"]
[SourceQuality "1"]
[TimeControl "40/5400+30:1800+30"]

1. c4 {[%emt 0:00:00]} e6 {[%emt 0:00:00]} 2. Nc3 {[%emt 0:00:00]} d5 {[%emt 0:04:46]} 3. e3 {[%emt 0:00:13]} Nf6 {[%emt 0:00:45]} 4. Nf3 {[%emt 0:00:05]} c5 {[%emt 0:01:07]} 5. cxd5 {[%emt 0:00:10]} Nxd5 {[%emt 0:00:24]} 6. Bc4 {[%emt 0:00:43]} Nc6 {[%emt 0:01:49]} 7. O-O {[%emt 0:00:24]} Be7 {[%emt 0:00:27]} 8. d4 {[%emt 0:01:07]} Nxc3 {[%emt 0:12:13]} 9. bxc3 {[%emt 0:00:07]} O-O {[%emt 0:00:14]} 10. Qe2 {[%emt 0:05:39]} b6 {[%emt 0:01:33]} 11. Rd1 {[%emt 0:00:30]} cxd4 {[%emt 0:02:03]} 12. cxd4 {[%emt 0:01:10]} Bb7 {[%emt 0:05:43]} 13. Bb2 {[%emt 0:00:37]} Na5 {[%emt 0:05:15]} 14. Ba6 {[%emt 0:09:39]} Bxa6 {[%emt 0:01:28]} 15. Qxa6 {[%emt 0:00:25]} Qc8 {[%emt 0:00:17]} 16. Qb5 {[%emt 0:06:09]} Qc6 {[%emt 0:17:01]} 17. Qxc6 {[%emt 0:07:04]} Nxc6 {[%emt 0:00:07]} 18. d5 {[%emt 0:03:30]} exd5 {[%emt 0:00:50]} 19. Rxd5 {[%emt 0:00:31]} Rfd8 {[%emt 0:00:18]} 20. Rad1 {[%emt 0:01:08]} Nb4 {[%emt 0:04:53]} 21. Rxd8+ {[%emt 0:02:26]} Rxd8 {[%emt 0:00:08]} 22. Rxd8+ {[%emt 0:00:13]} Bxd8 {[%emt 0:00:10]} 23. a3 {[%emt 0:02:16]} Nd3 {[%emt 0:01:01]} 24. Bc3 {[%emt 0:01:43]} Be7 {[%emt 0:04:04]} 25. a4 {[%emt 0:00:13]} Nc5 {[%emt 0:15:14]} 26. a5 {[%emt 0:02:09]} Ne4 {[%emt 0:04:11]} 27. axb6 {[%emt 0:07:08]} axb6 {[%emt 0:00:31]} 28. Be1 {[%emt 0:00:14]} Kf8 {[%emt 0:01:25]} 29. Nd4 {[%emt 0:01:53]} Bc5 {[%emt 0:03:01]} 30. Kf1 {[%emt 0:02:50]} Bxd4 {[%emt 0:02:36]} 31. exd4 {[%emt 0:00:05]} Ke7 {[%emt 0:00:17]} 32. Ke2 {[%emt 0:01:45]} Ke6 {[%emt 0:00:07]} 33. Kd3 {[%emt 0:00:15]} Kd5 {[%emt 0:00:09]} 34. f3 {[%emt 0:01:28]} Nd6 {[%emt 0:01:16]} 35. g4 {[%emt 0:00:58]} Nb5 {[%emt 0:02:08]} 36. Bf2 {[%emt 0:00:46]} Na7 {[%emt 0:00:16]} 37. Be1 {[%emt 0:03:25]} Nc6 {[%emt 0:00:15]} 38. Bc3 {[%emt 0:00:11]} b5 {[%emt 0:00:29]} 39. Bb2 {[%emt 0:01:41]} b4 {[%emt 0:04:36]} 40. Ba1 {[%emt 0:01:49]} g6 {[%emt 0:01:13]} 41. Bb2 {[%emt 0:30:36]} Na5 {[%emt 0:10:13]} 42. Bc1 {[%emt 0:00:00]} Nc4 {[%emt 0:05:12]} 43. Bg5 {[%emt 0:00:00]} b3 {[%emt 0:09:39]} 44. Bf6 {[%emt 0:00:00]} Nd6 {[%emt 0:05:44]} 45. Kc3 {[%emt 0:00:00]} Nb5+ {[%emt 0:00:13]} 46. Kxb3 {[%emt 0:00:00]} Nxd4+ {[%emt 0:00:06]} 47. Kc3 {[%emt 0:00:00]} Nxf3 {[%emt 0:00:10]} 48. h4 {[%emt 0:00:00]} Ne5 {[%emt 0:01:05]} 0-1

[Event "SWE-ch Masters 2019"]
[Site "Eskilstuna"]
[Date "2019.07.13"]
[Round "8.5"]
[White "Olsson, Simon"]
[Black "Wahlund, Max"]
[Result "1/2-1/2"]
[ECO "A45"]
[WhiteElo "2176"]
[BlackElo "2100"]
[Annotator "ChessBase"]
[PlyCount "28"]
[EventDate "2019.07.06"]
[EventType "swiss"]
[EventCountry "SWE"]
[SourceTitle "playchess.com"]
[Source "ChessBase"]
[SourceQuality "1"]
[TimeControl "40/5400+30:1800+30"]

1. d4 {[%emt 0:00:00]} Nf6 {[%emt 0:00:14]} 2. Bg5 {[%emt 0:00:00]} e6 {[%emt 0:00:03]} 3. e4 {[%emt 0:00:00]} h6 {[%emt 0:00:03]} 4. Bxf6 {[%emt 0:00:04]} Qxf6 {[%emt 0:00:07]} 5. Nc3 {[%emt 0:00:12]} Bb4 {[%emt 0:00:08]} 6. Qd3 {[%emt 0:00:13]} O-O {[%emt 0:00:39]} 7. e5 {[%emt 0:05:09]} Qe7 {[%emt 0:03:18]} 8. a3 {[%emt 0:00:35]} Bxc3+ {[%emt 0:03:05]} 9. Qxc3 {[%emt 0:00:19]} d6 {[%emt 0:00:06]} 10. f4 {[%emt 0:01:47]} a5 {[%emt 0:21:02]} 11. Nf3 {[%emt 0:02:29]} b6 {[%emt 0:00:38]} 12. Bd3 {[%emt 0:03:06]} Ba6 {[%emt 0:03:57]} 13. O-O {[%emt 0:00:26]} Bxd3 {[%emt 0:04:55]} 14. Qxd3 {[%emt 0:03:29]} Nd7 {[%emt 0:02:58]} 1/2-1/2

[Event "SWE-ch Masters 2019"]
[Site "Eskilstuna"]
[Date "2019.07.13"]
[Round "8.6"]
[White "Lind, Jan-Olov"]
[Black "Hellstrom, Magnus"]
[Result "1-0"]
[ECO "A08"]
[WhiteElo "2155"]
[BlackElo "2061"]
[Annotator "NA"]
[PlyCount "65"]
[EventDate "2019.07.06"]
[EventType "swiss"]
[EventCountry "SWE"]
[SourceTitle "playchess.com"]
[Source "ChessBase"]
[SourceQuality "1"]
[TimeControl "40/5400+30:1800+30"]

1. e4 {[%emt 0:00:00]} c5 {[%emt 0:00:03]} 2. Nf3 {[%emt 0:00:00]} Nc6 {[%emt 0:00:21]} 3. d3 {[%emt 0:00:24]} g6 {[%emt 0:00:32]} 4. g3 {[%emt 0:00:05]} Bg7 {[%emt 0:00:15]} 5. Bg2 {[%emt 0:00:04]} Nf6 {[%emt 0:00:17]} 6. O-O {[%emt 0:00:21]} d5 {[%emt 0:00:34]} 7. Nbd2 {[%emt 0:00:59]} O-O {[%emt 0:05:11]} 8. Re1 {[%emt 0:01:31]} dxe4 {[%emt 0:01:06]} 9. dxe4 {[%emt 0:00:15]} e5 {[%emt 0:00:39]} 10. c3 {[%emt 0:01:14]} h6 {[%emt 0:01:46]} 11. Qe2 {[%emt 0:07:32]} Qc7 {[%emt 0:02:52]} 12. Nc4 {[%emt 0:05:01]} Rd8 {[%emt 0:06:47]} 13. Nh4 {[%emt 0:03:45]} b6 {[%emt 0:19:02]} 14. Ne3 {[%emt 0:02:08]} Ne7 {[%emt 0:07:36]} 15. a4 {[%emt 0:26:18]} Bb7 {[%emt 0:06:52]} 16. Qc4 {[%emt 0:06:00]} Ne8 {[%emt 0:05:52]} 17. Ng4 {[%emt 0:09:48]} Nd6 {[%emt 0:02:24]} 18. Qa2 {[%emt 0:06:13]} Kh7 {[%emt 0:07:27]} 19. f4 {[%emt 0:08:30]} Nc6 {[%emt 0:03:06]} 20. fxe5 {[%emt 0:04:19]} Nxe5 {[%emt 0:01:03]} 21. Nxe5 {[%emt 0:00:27]} Bxe5 {[%emt 0:00:09]} 22. Nf3 {[%emt 0:00:59]} Bg7 {[%emt 0:02:32]} 23. e5 {[%emt 0:00:50]} Nf5 {[%emt 0:07:28]} 24. e6 {[%emt 0:04:59]} Bd5 {[%emt 0:03:34]} 25. Ng5+ {[%emt 0:00:40]} hxg5 {[%emt 0:01:01]} 26. Bxd5 {[%emt 0:00:06]} Rac8 {[%emt 0:06:19]} 27. Qc4 {[%emt 0:02:18]} Qd6 {[%emt 0:02:28]} 28. Bg2 {[%emt 0:01:55]} fxe6 {[%emt 0:00:39]} 29. Bxg5 {[%emt 0:00:30]} Qd3 {[%emt 0:03:18]} 30. Qxd3 {[%emt 0:01:38]} Rxd3 {[%emt 0:00:06]} 31. Rxe6 {[%emt 0:00:20]} Bh6 {[%emt 0:00:39]} 32. Bxh6 {[%emt 0:00:18]} Kxh6 {[%emt 0:00:16]} 33. Be4 {[%emt 0:00:34]} 1-0

[Event "SWE-ch Masters 2019"]
[Site "Eskilstuna"]
[Date "2019.07.13"]
[Round "8.7"]
[White "Emmoth, Alfons"]
[Black "Olsson, Svante"]
[Result "0-1"]
[ECO "E71"]
[WhiteElo "2075"]
[BlackElo "2155"]
[Annotator "NA"]
[PlyCount "96"]
[EventDate "2019.07.06"]
[EventType "swiss"]
[EventCountry "SWE"]
[SourceTitle "playchess.com"]
[Source "ChessBase"]
[SourceQuality "1"]
[TimeControl "40/5400+30:1800+30"]

1. d4 {[%emt 0:00:00]} Nf6 {[%emt 0:00:00]} 2. c4 {[%emt 0:00:00]} g6 {[%emt 0:00:00]} 3. Nc3 {[%emt 0:00:00]} Bg7 {[%emt 0:00:00]} 4. e4 {[%emt 0:00:00]} O-O {[%emt 0:00:05]} 5. h3 {[%emt 0:00:00]} d6 {[%emt 0:00:07]} 6. Be3 {[%emt 0:00:08]} Nc6 {[%emt 0:00:34]} 7. Nge2 {[%emt 0:05:29]} e5 {[%emt 0:00:36]} 8. d5 {[%emt 0:00:51]} Ne7 {[%emt 0:00:14]} 9. g4 {[%emt 0:07:06]} c6 {[%emt 0:04:36]} 10. Ng3 {[%emt 0:03:11]} a6 {[%emt 0:00:17]} 11. a4 {[%emt 0:09:38]} Bd7 {[%emt 0:01:10]} 12. a5 {[%emt 0:06:37]} c5 13. Bd3 b5 14. axb6 Qxb6 15. b3 Ne8 16. Nb1 f5 17. gxf5 Nxf5 18. exf5 e4 19. Ra3 exd3 20. fxg6 Nf6 21. gxh7+ Kh8 22. Qxd3 Rae8 23. Nd2 {[%emt 0:05:30]} Bc8 {[%emt 0:11:01]} 24. Kd1 {[%emt 0:00:30]} Qc7 {[%emt 0:00:30]} 25. Kc1 {[%emt 0:00:30]} Nd7 {[%emt 0:00:30]} 26. f4 {[%emt 0:00:30]} Nf6 {[%emt 0:00:30]} 27. Nf3 {[%emt 0:00:30]} Bh6 {[%emt 0:00:30]} 28. Nh4 {[%emt 0:00:30]} Qxh7 {[%emt 0:00:30]} 29. Qxh7+ {[%emt 0:00:30]} Kxh7 {[%emt 0:00:30]} 30. Bd2 {[%emt 0:00:30]} Ne4 {[%emt 0:00:30]} 31. Nxe4 {[%emt 0:00:30]} Rxe4 {[%emt 0:00:30]} 32. Nf3 {[%emt 0:00:30]} Kg6 {[%emt 0:00:30]} 33. Ng5 {[%emt 0:00:30]} Rexf4 {[%emt 0:00:30]} 34. h4 {[%emt 0:00:30]} Rf1+ {[%emt 0:00:30]} 35. Rxf1 {[%emt 0:00:30]} Rxf1+ {[%emt 0:00:30]} 36. Be1 {[%emt 0:00:30]} Rxe1+ {[%emt 0:00:30]} 37. Kd2 {[%emt 0:00:30]} Rh1 {[%emt 0:00:30]} 38. Ke2 {[%emt 0:00:30]} Rxh4 {[%emt 0:00:30]} 39. Ne6 {[%emt 0:00:30]} Bxe6 {[%emt 0:00:30]} 40. dxe6 {[%emt 0:00:30]} Re4+ {[%emt 0:00:30]} 41. Kd3 {[%emt 0:30:30]} Rxe6 {[%emt 0:30:30]} 42. Rxa6 {[%emt 0:00:30]} Kf5 {[%emt 0:00:30]} 43. Rb6 {[%emt 0:00:30]} Re3+ {[%emt 0:00:30]} 44. Kc2 {[%emt 0:00:30]} Ke5 {[%emt 0:00:30]} 45. b4 {[%emt 0:00:30]} cxb4 {[%emt 0:00:30]} 46. Rxb4 {[%emt 0:00:30]} Kd4 {[%emt 0:00:30]} 47. Rb6 {[%emt 0:00:30]} Bf4 {[%emt 0:00:30]} 48. Ra6 {[%emt 0:00:30]} Be5 {[%emt 0:00:30]} 0-1

[Event "SWE-ch Masters 2019"]
[Site "Eskilstuna"]
[Date "2019.07.13"]
[Round "8.8"]
[White "Jogstad, Daniel"]
[Black "Olsson, William"]
[Result "1-0"]
[ECO "B51"]
[WhiteElo "2154"]
[BlackElo "2113"]
[Annotator "NA"]
[PlyCount "91"]
[EventDate "2019.07.06"]
[EventType "swiss"]
[EventCountry "SWE"]
[SourceTitle "playchess.com"]
[Source "ChessBase"]
[SourceQuality "1"]
[TimeControl "40/5400+30:1800+30"]

1. e4 {[%emt 0:00:00]} c5 {[%emt 0:00:00]} 2. Nf3 {[%emt 0:00:00]} d6 {[%emt 0:00:00]} 3. Bb5+ {[%emt 0:00:00]} Nd7 {[%emt 0:00:00]} 4. d4 {[%emt 0:00:06]} cxd4 {[%emt 0:00:00]} 5. Qxd4 {[%emt 0:00:16]} a6 {[%emt 0:00:22]} 6. Bxd7+ {[%emt 0:01:08]} Bxd7 {[%emt 0:00:06]} 7. c4 {[%emt 0:01:37]} Rc8 {[%emt 0:00:31]} 8. O-O {[%emt 0:00:35]} e5 {[%emt 0:00:30]} 9. Qd3 {[%emt 0:00:29]} Be6 {[%emt 0:00:27]} 10. b3 {[%emt 0:00:27]} h6 {[%emt 0:04:34]} 11. Nc3 {[%emt 0:06:25]} Nf6 {[%emt 0:01:19]} 12. Rd1 {[%emt 0:00:54]} Be7 {[%emt 0:01:37]} 13. Ba3 {[%emt 0:06:36]} Qa5 {[%emt 0:05:46]} 14. Bb2 {[%emt 0:00:42]} O-O {[%emt 0:00:37]} 15. Nd2 {[%emt 0:01:52]} Nh5 {[%emt 0:04:34]} 16. g3 {[%emt 0:02:17]} Nf6 {[%emt 0:10:46]} 17. Nf1 {[%emt 0:00:42]} Rfd8 {[%emt 0:04:09]} 18. Ne3 {[%emt 0:01:12]} Bf8 {[%emt 0:01:28]} 19. Ncd5 {[%emt 0:04:09]} Nxd5 {[%emt 0:02:35]} 20. cxd5 {[%emt 0:00:53]} Bd7 {[%emt 0:01:16]} 21. Nc4 {[%emt 0:00:58]} Qc5 {[%emt 0:01:02]} 22. Rdc1 {[%emt 0:03:05]} Qa7 {[%emt 0:00:21]} 23. a4 {[%emt 0:00:52]} b5 {[%emt 0:03:34]} 24. axb5 {[%emt 0:04:19]} Bxb5 {[%emt 0:00:58]} 25. Bc3 {[%emt 0:02:18]} Be7 {[%emt 0:01:19]} 26. Bd2 {[%emt 0:00:13]} Rf8 {[%emt 0:04:14]} 27. Qe3 {[%emt 0:09:59]} Qb7 {[%emt 0:02:31]} 28. Na5 {[%emt 0:08:26]} Qd7 {[%emt 0:03:44]} 29. Nc4 {[%emt 0:05:37]} Rb8 {[%emt 0:04:10]} 30. Na3 {[%emt 0:02:27]} Bg5 {[%emt 0:02:37]} 31. Qe1 {[%emt 0:00:12]} Bxd2 {[%emt 0:01:28]} 32. Qxd2 {[%emt 0:00:04]} Qg4 {[%emt 0:00:11]} 33. Nxb5 {[%emt 0:00:36]} Rxb5 {[%emt 0:00:21]} 34. Qe3 {[%emt 0:02:19]} a5 {[%emt 0:02:33]} 35. Rc3 {[%emt 0:09:41]} Qd7 {[%emt 0:06:17]} 36. Rac1 {[%emt 0:01:38]} Rb4 {[%emt 0:03:29]} 37. Rc7 {[%emt 0:03:54]} Qb5 {[%emt 0:01:11]} 38. R7c3 {[%emt 0:08:18]} Kh7 {[%emt 0:11:09]} 39. Qf3 {[%emt 0:03:06]} Qb8 {[%emt 0:08:11]} 40. h4 {[%emt 0:06:05]} Kg8 {[%emt 0:01:20]} 41. h5 {[%emt 0:06:23]} Rd4 {[%emt 0:08:58]} 42. Qf5 {[%emt 0:01:48]} Qb7 {[%emt 0:02:09]} 43. Kg2 {[%emt 0:02:38]} Rb4 {[%emt 0:05:33]} 44. Rc8 {[%emt 0:01:09]} Rxb3 {[%emt 0:01:05]} 45. R1c7 {[%emt 0:00:16]} Qb6 {[%emt 0:00:48]} 46. Qxf7+ {[%emt 0:00:11]} 1-0

[Event "SWE-ch Masters 2019"]
[Site "Eskilstuna"]
[Date "2019.07.13"]
[Round "8.9"]
[White "Carlsson, Andreas"]
[Black "Adellian, Yashar"]
[Result "0-1"]
[ECO "D00"]
[WhiteElo "2019"]
[BlackElo "1995"]
[Annotator "NA"]
[PlyCount "68"]
[EventDate "2019.07.06"]
[EventType "swiss"]
[EventCountry "SWE"]
[SourceTitle "playchess.com"]
[Source "ChessBase"]
[SourceQuality "1"]
[TimeControl "40/5400+30:1800+30"]

1. d4 {[%emt 0:00:00]} e6 {[%emt 0:00:01]} 2. Nc3 {[%emt 0:00:00]} d5 {[%emt 0:01:00]} 3. Bf4 {[%emt 0:00:00]} c5 {[%emt 0:16:02]} 4. e3 {[%emt 0:00:10]} Bd7 {[%emt 0:00:42]} 5. Nf3 {[%emt 0:01:05]} Qb6 {[%emt 0:04:32]} 6. Qd2 {[%emt 0:08:44]} Nf6 {[%emt 0:00:41]} 7. Be2 {[%emt 0:03:49]} Nh5 {[%emt 0:09:20]} 8. Bg3 {[%emt 0:09:08]} Nxg3 {[%emt 0:01:43]} 9. hxg3 {[%emt 0:00:22]} Nc6 {[%emt 0:07:56]} 10. dxc5 {[%emt 0:04:52]} Qxc5 {[%emt 0:02:18]} 11. a3 {[%emt 0:03:13]} Be7 {[%emt 0:09:26]} 12. b4 {[%emt 0:11:06]} Qb6 {[%emt 0:02:08]} 13. Rb1 {[%emt 0:04:41]} Rc8 {[%emt 0:01:39]} 14. Rb3 {[%emt 0:06:09]} Bf6 {[%emt 0:07:44]} 15. Na4 {[%emt 0:02:15]} Qc7 {[%emt 0:03:07]} 16. Nc5 {[%emt 0:00:40]} Ne5 {[%emt 0:02:47]} 17. Nxe5 {[%emt 0:04:42]} Bxe5 {[%emt 0:00:29]} 18. f4 {[%emt 0:01:27]} Bf6 {[%emt 0:00:57]} 19. g4 {[%emt 0:08:09]} b6 {[%emt 0:03:31]} 20. Nxd7 {[%emt 0:00:17]} Qxd7 {[%emt 0:01:42]} 21. g5 {[%emt 0:00:31]} Be7 {[%emt 0:00:45]} 22. Ba6 {[%emt 0:04:51]} Rc7 {[%emt 0:00:52]} 23. Qd3 {[%emt 0:00:20]} Kf8 {[%emt 0:05:44]} 24. Rxh7 {[%emt 0:01:17]} Kg8 {[%emt 0:00:18]} 25. Rxh8+ {[%emt 0:01:01]} Kxh8 {[%emt 0:00:04]} 26. Kd2 {[%emt 0:02:47]} e5 {[%emt 0:01:34]} 27. Rb1 {[%emt 0:02:40]} g6 {[%emt 0:01:51]} 28. Rh1+ {[%emt 0:01:38]} Kg8 {[%emt 0:01:46]} 29. fxe5 {[%emt 0:06:51]} Bxg5 {[%emt 0:00:41]} 30. Qd4 {[%emt 0:00:48]} Qf5 {[%emt 0:02:27]} 31. c4 {[%emt 0:08:58]} dxc4 {[%emt 0:09:41]} 32. Bxc4 {[%emt 0:00:36]} Rd7 {[%emt 0:00:38]} 33. Bd5 {[%emt 0:02:11]} Qf2+ {[%emt 0:00:20]} 34. Kd3 {[%emt 0:01:06]} Bxe3 {[%emt 0:01:25]} 0-1